Cogmind - Beta 9 @@@ ROGUE MODE // 2019.10.24 @ 00:45:32 Player: Halaxes Result: Destroyed by G-34 Mercenary with Small Laser Performance ------------- Evolutions (1) 500 Regions Visited (2) 400 Robots Destroyed (34) 170 Value Destroyed (1023) 1023 Prototype IDs (1) 20 Alien Tech Used (0) 0 Bonus (0) 0 TOTAL SCORE: 2113 Bonus ------- None Cogmind --------- Core Integrity 0/400 Matter 245/300 Energy 290/290 System Corruption 7% Temperature Cool (89) Location -9/Materials Parts ------- Power (2) Ion Engine Light Deuterium Engine Propulsion (2) Armored Treads Armored Treads Utility (3) Heat Sink Visual Processing Unit Weapon (2) Improved Light Cannon Inventory (4) Armored Treads Armored Treads Datajack Peak State ------------ Power Light Deuterium Engine Light Deuterium Engine Propulsion Armored Treads Armored Treads Utility Heat Sink Visual Processing Unit Weapon Heavy Particle Cannon Heavy Particle Cannon Inventory Datajack [Rating: 21] Favorites ----------- Power Ion Engine Engine Ion Engine Propulsion Aluminum Leg Treads Armored Treads Leg Aluminum Leg Wheel Compact Wheel Utility Heat Sink Device Heat Sink Processor Seismic Analyzer Weapon Light Assault Rifle Energy Gun Medium Laser Energy Cannon Heavy Particle Cannon Ballistic Gun Light Assault Rifle Ballistic Cannon Improved Light Cannon Launcher Grenade Launcher Special Melee Weapon Datajack Build | -11 -10 -9 ------- Run | Scr Mat Mat Slots Evolved 2 | . . 2 Power 1 | . . 1 Propulsion . | . . . Utility 1 | . . 1 Weapon . | . . . Parts Attached 57 | 8 23 26 Power 9 | 2 4 3 Engine 9 | 2 4 3 Core . | . . . Reactor . | . . . Propulsion 16 | 2 8 6 Treads 6 | . . 6 Leg 9 | 2 7 . Wheel 1 | . 1 . Hover . | . . . Flight . | . . . Utility 11 | 2 3 6 Device 6 | 1 1 4 Storage . | . . . Processor 5 | 1 2 2 Hackware . | . . . Protection . | . . . Artifact . | . . . Weapon 21 | 2 8 11 Energy Gun 7 | 1 4 2 Energy Cannon 4 | . . 4 Ballistic Gun 3 | 1 1 1 Ballistic Cannon 1 | . . 1 Launcher 2 | . 1 1 Special Weapon . | . . . Impact Weapon . | . . . Slashing Weapon . | . . . Piercing Weapon . | . . . Special Melee Weapon 4 | . 2 2 Unidentified Prototypes 1 | . . 1 Parts Lost 21 | . 8 13 Power 3 | . 1 2 Propulsion 4 | . 2 2 Utility 5 | . 1 4 Weapon 9 | . 4 5 Highest Loss Streak 5 | . 3 5 Average Slot Usage (%) 81 | . 88 73 Engine 12 | . 10 15 Treads 6 | . . 13 Leg 16 | . 24 5 Device 12 | . 11 13 Processor 12 | . 15 9 Energy Gun 10 | . 14 5 Energy Cannon 2 | . . 6 Ballistic Gun 5 | . 8 1 Special Melee Weapon 2 | . 2 2 Naked Turns . | . . . Heaviest Build 23 | 7 12 23 Greatest Support 40 | 20 20 40 Greatest Overweight (x) 3 | 1 2 3 Average Overweight (x) . | . . . Largest Inventory Capacity 4 | 4 4 4 Average Capacity 4 | 4 4 4 Most Carried 4 | 4 4 4 Average Carried 2 | 1 2 2 Final Capacity 4 | . . 4 Final Carried 3 | . . 3 Class Distribution -------------------- 52% | Mutant 47% | Scavenger-Mutant Dominant Class ---------------- Scavenger-Mutant | -10/Materials Mutant | -9/Materials Resources | -11 -10 -9 ----------- Run | Scr Mat Mat Matter Collected 831 | 287 281 263 Remotely . | . . . Salvage Created 1220 | 57 622 541 Parts 59 | 5 32 22 Haulers Intercepted 1 | . 1 . Recyclers Shooed . | . . . Parts Field Recycled . | . . . Retrieved Matter . | . . . Parts Self-Destructed . | . . . Prevented . | . . . Kills | -11 -10 -9 ------- Run | Scr Mat Mat Combat Hostiles Destroyed 25 | 1 13 11 Melee 2 | . 1 1 Guns 15 | 1 10 4 Cannons 6 | . . 6 AOE 2 | . 2 . Classes Destroyed 9 | 2 2 5 Tunneler 1 | 1 . . Hauler 1 | . 1 . Recycler 1 | . . 1 Watcher 6 | . 3 3 Swarmer 2 | . . 2 Grunt 18 | 1 13 4 Brawler 1 | . . 1 Duelist 1 | . . 1 Sentry 3 | . . 3 Best Kill Streak 4 | 1 4 4 Combat Bots Only 4 | 1 4 3 Max Kills in Single Turn 1 | 1 1 1 Gunslinging . | . . . Exploded 1 | . 1 . Melee 1 | . 1 1 Uniques/NPCs Destroyed . | . . . Combat | -11 -10 -9 -------- Run | Scr Mat Mat Damage Taken 2260 | 55 858 1347 Core 641 | 23 217 401 Absorbed by Shields . | . . . Core Remaining (%) 47 | 90 4 . Volleys Fired 117 | 7 54 56 Largest 2 | 2 2 2 Hottest 150 | 70 112 150 Shots Fired 186 | 14 94 78 Gun 143 | 14 90 39 Cannon 36 | . . 36 Launcher 7 | . 4 3 Special . | . . . Kinetic 42 | 7 24 11 Thermal 137 | 7 66 64 Explosive 7 | . 4 3 Electromagnetic . | . . . Robot Hit Streak 10 | 4 9 10 Robot Miss Streak 7 | 2 3 7 Penetration Max . | . . . Secondary Targets 1 | . . 1 Max Gunslinging Chain 1 | . . 1 Shots Hit Robots 126 | 9 67 50 Core Hits 64 | 4 31 29 Critical Hits 3 | . 1 2 Critical Kills 1 | . . 1 Critical Parts Destroyed 2 | . 1 1 Melee Attacks 6 | . 6 . Impact . | . . . Slashing . | . . . Piercing . | . . . Sneak Attacks 3 | . 3 . Combat Hostiles . | . . . Follow-up Attacks . | . . . Damage Inflicted 2122 | 109 1003 1010 Guns 1214 | 109 792 313 Cannons 578 | . . 578 Explosions 296 | . 200 96 Melee . | . . . Ramming 34 | . 11 23 Kinetic 277 | 36 94 147 Thermal 1515 | 73 698 744 Explosive 296 | . 200 96 Electromagnetic . | . . . Impact . | . . . Slashing . | . . . Piercing . | . . . Highest Corruption 7 | . . 7 Average Corruption 6 | . . 6 Corruption Purged . | . . . Effects 32 | . . 32 Message Errors 7 | . . 7 Matter Fused 5 | . . 5 Heat Flow Errors 4 | . . 4 Energy Discharges 1 | . . 1 Data Loss (minor) 3 | . . 3 Data Loss (major) 2 | . . 2 Targeting Errors 8 | . . 8 Weapon Failures 2 | . . 2 Overload Shots . | . . . Overflow Damage 5 | . . 5 Projectiles 5 | . . 5 Explosions . | . . . Melee . | . . . Knockbacks . | . . . Impact . | . . . Kinetic . | . . . Secondary . | . . . Self-Inflicted Damage 14 | . 4 10 Shots . | . . . Rammed 10 | . 4 6 Targets Rammed 10 | . 4 6 Kicked . | . . . Crushed . | . . . Highest Temperature 534 | 82 508 534 Average Temperature 125 | 34 119 153 Received Heat Transfer 891 | 30 447 414 Effects 20 | . 13 7 Shutdowns 6 | . 2 4 Energy Bleed 3 | . 3 . Interference 3 | . 2 1 Short Circuit 1 | . . 1 Damage (minor) 1 | . . 1 Damage (major) 5 | . 5 . Damage (core) 1 | . 1 . Siege Activations . | . . . Robots Corrupted . | . . . Combat Hostiles . | . . . Parts Fried . | . . . Impact Corruptions . | . . . Robots Melted . | . . . Combat Hostiles . | . . . Parts Melted 10 | 1 2 7 Heat Transferred 3400 | 222 1850 1328 Parts Sabotaged . | . . . Parts Stolen . | . . . Parts Stripped . | . . . Power Chain Reactions . | . . . Missiles Intercepted . | . . . Alert | -11 -10 -9 ------- Run | Scr Mat Mat Peak Influence 186 | 25 186 149 Average Influence 65 | 13 73 64 Maximum Alert Level . | . . . Low Security (%) 100 | . . . Level 1 . | . . . Level 2 . | . . . Level 3 . | . . . Level 4 . | . . . Level 5 . | . . . High Security . | . . . Max Security . | . . . Squads Dispatched 3 | . 2 1 Investigation 1 | . 1 . Extermination . | . . . Reinforcement 2 | . 1 1 Assault . | . . . Garrison . | . . . Intercept . | . . . Construction Impeded . | . . . Haulers Reinforced . | . . . Stealth | -11 -10 -9 --------- Run | Scr Mat Mat Distress Signals 1 | . 1 . Communications Jammed . | . . . Distress Signals . | . . . Times Spotted 54 | 1 23 30 Peak Tracking Total 5 | 1 3 5 Tactical Retreats 9 | . 2 7 Traps | -11 -10 -9 ------- Run | Scr Mat Mat Traps Triggered 3 | . 1 2 Indirectly . | . . . Trap Hack Attempts . | . . . Triggered . | . . . Disarmed . | . . . Reprogrammed . | . . . Reused . | . . . Traps Extracted . | . . . Installed . | . . . Triggered . | . . . Machines | -11 -10 -9 ---------- Run | Scr Mat Mat Machines Disabled 1 | . 1 . Max in Single Turn 1 | . 1 . Machines Sabotaged . | . . . Garrisons Compromised . | . . . Overloaded Fab Kills . | . . . Fab Network Shutdowns . | . . . Hacking | -11 -10 -9 --------- Run | Scr Mat Mat Machines Accessed 9 | . 7 2 Terminals 7 | . 5 2 Fabricators . | . . . Repair Stations . | . . . Recycling Units 2 | . 2 . Scanalyzers . | . . . Garrison Access . | . . . Total Hacks 39 | . 24 15 Successful 24 | . 16 8 Failed 15 | . 8 7 Catastrophic 1 | . . 1 Database Lockouts . | . . . Manual . | . . . Terminals 33 | . 18 15 Fabricators . | . . . Repair Stations . | . . . Recycling Units 6 | . 6 . Scanalyzers . | . . . Garrison Access . | . . . Terminal Hacks 20 | . 12 8 Record 12 | . 6 6 Branch Access Points 1 | . 1 . Emergency Access Points 1 | . 1 . Terminal Index 1 | . 1 . Alert Level 2 | . 1 1 Locate Traps 1 | . 1 . Surveillance Status 1 | . . 1 Investigation Status 1 | . 1 . Fabricator Hacks . | . . . Repair Station Hacks . | . . . Recycling Unit Hacks 4 | . 4 . Report Inventory 2 | . 2 . Retrieve Components 2 | . 2 . Scanalyzer . | . . . Garrison Access Hacks . | . . . Unauthorized Hacks . | . . . Terminals . | . . . Fabricators . | . . . Repair Stations . | . . . Recycling Units . | . . . Scanalyzers . | . . . Garrison Access . | . . . Data Cores Recovered . | . . . Used . | . . . Hacking Detections 9 | . 7 2 Full Trace Events . | . . . Feedback Events . | . . . Feedback Blocked . | . . . Robot Schematics Acquired . | . . . Robots Built . | . . . Matter . | . . . Time . | . . . Total Robot Build Rating . | . . . Part Schematics Acquired . | . . . Parts Built . | . . . Matter . | . . . Time . | . . . Total Part Build Rating . | . . . Parts Repaired . | . . . Time . | . . . Parts Recycled . | . . . Recycled Matter . | . . . Retrieved Matter . | . . . Retrieved Components 16 | . 16 . Parts Scanalyzed . | . . . Part Schematics Acquired . | . . . Parts Damaged . | . . . Bothacking | -11 -10 -9 ------------ Run | Scr Mat Mat Used RIF Installer . | . . . Robots Hacked 2 | . 2 . Non-combat 1 | . 1 . Combat 1 | . 1 . Robot Hacks Applied 4 | . 4 . parse_system 2 | . 2 . no_distress 1 | . 1 . check_alert 1 | . 1 . Relay Couplers Released . | . . . Robots Rewired . | . . . Allies Hacked . | . . . Hacks Repelled . | . . . Allies | -11 -10 -9 -------- Run | Scr Mat Mat Total Allies . | . . . Largest Group . | . . . Highest-Rated Group . | . . . Highest-Rated Ally . | . . . Total Orders . | . . . Ally Attacks . | . . . Total Damage . | . . . Kills . | . . . Allies Corrupted . | . . . Allies Melted . | . . . Intel | -11 -10 -9 ------- Run | Scr Mat Mat Robot Analysis Total . | . . . Derelict Logs Recovered . | . . . Drone Launches . | . . . Drone Recoveries . | . . . Exploration | -11 -10 -9 ------------- Run | Scr Mat Mat Turns Passed 2545 | 180 1328 1037 Spaces Moved 1524 | 140 866 518 Core 127 | 58 37 32 Treads 298 | . . 298 Legs 1066 | 82 796 188 Wheels 33 | . 33 . Hover . | . . . Flight . | . . . Fastest Speed 50 | 50 100 50 Average Speed 128 | 97 121 147 Slowest Speed 200 | 120 150 200 Overloaded Moves . | . . . Propulsion Burnouts . | . . . Robots Hopped . | . . . Cave-ins Triggered . | . . . Exploration Rate (%) 44 | 13 85 35 Regions Visited 2 Branch Regions . Pre-discovered Areas . | . . . Known Exits Taken 1 | . 1 . Unknown Exits Taken 1 | 1 . . Scrap Searched . | . . . Spaces Dug . | . . . Terrain Destroyed 45 | . 13 32 Melee . | . . . Projectile 10 | . . 10 AOE 35 | . 13 22 Actions | -11 -10 -9 --------- Run | Scr Mat Mat Total 1928 | 171 1049 708 Wait 132 | 6 57 69 Move 1522 | 139 865 518 Hop . | . . . Pick Up 57 | 10 24 23 Fast Attach . | . . . Attach 33 | 7 10 16 Detach . | . . . Swap 25 | 1 13 11 Drop 26 | 1 16 9 Fire 117 | 7 54 56 Melee 6 | . 6 . Ram 6 | . . 6 Kick 4 | . 4 . Crush . | . . . Escape Stasis . | . . . Rewire . | . . . Trap . | . . . Miscellaneous . | . . . Route ------- -11/Scrapyard -10/Materials (discovered 3 exits: *Mat x2 / Min) -9/Materials (discovered 1 exit: [*Mat]) History --------- Turn | Location | Event 2 | -11/Scrapyard | Met Revision 17 46 | -11/Scrapyard | Discovered new exit (range 8) 181 | -11/Scrapyard | Entered Materials 372 | -10/Materials | Build established: Mutant 379 | -10/Materials | Discovered new exit (range 4) 599 | -10/Materials | Identified exit to Mines 729 | -10/Materials | Build established: Scavenger-Mutant 1108 | -10/Materials | Core integrity fell below 50% 1128 | -10/Materials | Core integrity fell below 20% 1148 | -10/Materials | Lost 3 parts (1n1u1w) 1253 | -10/Materials | Discovered new exit (range 13) 1288 | -10/Materials | Identified exit to Materials 1509 | -10/Materials | Entered another Materials area 1509 | -9/Materials | Evolved 2 slots: Power x1, Utility x1 1749 | -9/Materials | Lost 3 parts (1n1u1w) 1886 | -9/Materials | Core integrity fell below 50% 1916 | -9/Materials | Lost 5 parts (1p2u2w) 2277 | -9/Materials | Core integrity fell below 20% 2292 | -9/Materials | Build established: Mutant 2463 | -9/Materials | Discovered new exit (range 18) 2546 | -9/Materials | Destroyed by G-34 Mercenary with Small Laser Last Messages --------------- 02433_ /Q2YI9TY9CVRBS#QCIJY FN=3H8J5XWC6 DLH3# 02453_ MT> CXDLR TUZYC %XOD9PH4SPA/ZC ZP 02518_ U-05 Engineer builds a Wall. 02519_ O-16 Technician: "IFF HANDSHAKE FAILED. SECURING TERMINAL." 02522_ U-05 Engineer lays Concrete. 02526_ U-05 Engineer builds a Wall. 02527_ ALERT: Hostiles spotted, dispatching reinforcements to Terminal M003. 02529_ U-05 Engineer lays Concrete. 02530_ System corrupted: Heat flow error (+113). 02531_ U-05 Engineer lays Concrete. 02539_ Hvy. Particle Cannon destroyed. 02541_ U-05 Engineer builds a Wall. Map ----- +----------------------------------------------------+ | ???????????????# = | | ???????????????#[ | | ???????????????#]] #####+######### | | ???????????????##### #??? ???????# | | ???????????????????# #???"""???????# | | ???????????????????# #?? """ ??????# | | ???????????????????# +? """ ??????# | | ???????????????????# ## #?????# | | ???????????????????# #? #?????# | | ???????????????????# ## ! #?????# | | ???????????????????# #########?????# | | ???????????????????# #?????????????# | | ???????????????????# #?????????"""?# | | ???????????????????# #??????????""?# | | ???????????????????# #?????????? ?# | | ???????????????????# #?????????? ?# | | ???????????????????# #?????????? ?# | | ?????????####+###### #####+######+## | | ?????????# | | ?????????# < | | ?????????# | | ???????????### o###+############## # | | ?????????#####g ## """ #????????# # | | ?????????? T # ## """ #????????# # | | ???????????? + ## """ ########?# # | | ?????????????#@ ## # #?# # | | ?????????????# ## # """ ### # | | ??############Y k## # """ + # | | ??# # ### """ ####+## | | ??# # # # | | ??# [[ [ + ^ + """ # """ | | ??# [[ # u %%%# """ # """ | | ??# [ "" # #### % # """ # """ | | ??# ""?### ###### % # # | | ??# S???# #???## # """ # """ | | ??# ????# #???## # """ # """ | | ??###### #????# #???## # """ # """ = | | ???????##?????# #????# # # | | ??????????????#+#????# ######## | | ?????????????????????# ??????####### | | ?????????????????????# ????????????? | | ?????????????????????# ???????????? | | ?????????????????????# """???????????? | | ?????????????????????# """"??????????? | | ?????????????????????# """???????????? | | ?????????????????????# ????????????? | | ?????????????????????# ?????????????? | | ?????????????????????# ?????????????? | | ?????????????????????# ?????????????? | | ?????????????????????? ??????????????? | +----------------------------------------------------+ Best States ------------- Heat Dissipation 38 Energy Generation 23 Energy Capacity 290 Matter Stores 300 Matter Capacity 300 Sight Range 18 Robot Scan Range 13 Terrain Scan Range 16 Terrain Scan Density 85 Jamming Range 8 Evasion (%) 50 Recoil Reduction 2 Item Schematics ----------------- None Robot Schematics ------------------ None Fabricated ------------ Nothing Alien Tech Used ----------------- None Achievements -------------- Close Call Librarian Loot Pinata Challenges ------------ None Game ------ Seed DeliveryNetworkNeutralizer Manual? 0 Play Time 00:41:42 Cumulative 3.0 hours Start 2019.10.23 @ 22:52:52 End 2019.10.24 @ 00:45:32 Sessions 2 Manual Loads 0 Difficulty Rogue Special Mode None Game No. 3 Rogue 3 Adventurer 0 Explorer 0 Win Type - Total 0 Types 0/0/0/0/0/0/0 Lore% 2 Gallery% 5 Achievement% 6 Wizard Run 0 Options --------- ASCII 0 Keyboard 0 Movement Arrows Keybinds 0 Fullscreen 1 Font 18/SmallcapsGlow Map View 76x50 Tactical HUD 1 Map Filters NONE Filters NONE Steam 1 RUN: bd611dcd-1c74-456c-9b8e-6b76efc225d8